fUST/lending_fUST_20250805
["ID","MTS","AMOUNT","RATE_DAILY","PERIOD"]
[377406542,1754383841360,-124356.61452213,0.0003568,2]
[377406544,1754383841369,-3305.80386957,0.00035814,3]
[377406546,1754383841379,-23860.87155709,0.00035824,2]
[377406548,1754383841389,-430.7234783,0.00035829,30]
[377406550,1754383841398,-430.7234783,0.00035829,30]
[377406552,1754383841408,-430.7234783,0.00035829,30]
[377406554,1754383841417,-430.7234783,0.00035829,30]
[377406556,1754383841426,-430.7234783,0.00035829,30]
[377406558,1754383841435,-430.7234783,0.00035829,30]
[377406560,1754383841445,-430.7234783,0.00035829,30]
[377406562,1754383841454,-430.7234783,0.00035829,30]
[377406564,1754383841463,-430.7234783,0.00035829,30]
[377406566,1754383841472,-430.7234783,0.00035829,30]
[377406567,1754383841481,-430.7234783,0.00035829,30]
[377406568,1754383841490,-430.7234783,0.00035829,30]
[377406569,1754383841499,-430.7234783,0.00035829,30]
[377406570,1754383841508,-430.7234783,0.00035829,30]
[377406571,1754383841517,-430.7234783,0.00035829,30]
[377406572,1754383841526,-430.7234783,0.00035829,30]
[377406573,1754383841535,-430.7234783,0.00035829,30]
[377406574,1754383841545,-430.7234783,0.00035829,30]
[377406575,1754383841554,-430.7234783,0.00035829,30]
[377406576,1754383841568,-430.7234783,0.00035829,30]
[377406577,1754383841582,-430.7234783,0.00035829,30]
[377406578,1754383841595,-201.3747688,0.00035829,30]
[377406579,1754383841608,-12655.02535889,0.0003587,2]
[377406580,1754383841618,-724.87315716,0.00035889,2]
[377406581,1754383841631,-3305.80386957,0.0003589,3]
[377406582,1754383841644,-486.15,0.000359,7]
[377406583,1754383841655,-35257.66,0.000359,14]
[377406584,1754383841668,-527.3554621,0.000359,30]
[377406586,1754383841680,-153.0,0.00035966,30]
[377406588,1754383841692,-153.0,0.00035966,30]
[377406590,1754383841706,-292.9155566,0.00035999,30]
[377406592,1754383841719,-160.3162146,0.00035999,30]
[377406594,1754383841731,-400.9420535,0.00035999,30]
[377406597,1754383841743,-153.0,0.00035999,30]
[377406599,1754383841756,-292.9155566,0.00035999,30]
[377406601,1754383841768,-160.3162146,0.00035999,30]
[377406604,1754383841780,-292.9155566,0.00035999,30]
[377406606,1754383841792,-153.0,0.00035999,30]
[377406608,1754383841805,-578.9513623,0.00035999,30]
[377406610,1754383841817,-160.3162146,0.00035999,30]
[377406613,1754383841829,-153.0,0.00035999,30]
[377406615,1754383841839,-292.9155566,0.00035999,30]
[377406617,1754383841850,-160.3162146,0.00035999,30]
[377406619,1754383841863,-578.9513623,0.00035999,30]
[377406621,1754383841874,-153.0,0.00035999,30]
[377406624,1754383841888,-292.9155566,0.00035999,30]
[377406626,1754383841900,-153.0,0.00035999,30]
[377406628,1754383841913,-578.9513623,0.00035999,30]
[377406631,1754383841925,-578.9513623,0.00035999,30]
[377406633,1754383841938,-292.9155566,0.00035999,30]
[377406635,1754383841952,-153.0,0.00035999,30]
[377406638,1754383841967,-578.9513623,0.00035999,30]
[377406640,1754383841980,-153.0,0.00035999,30]
[377406642,1754383841991,-292.9155566,0.00035999,30]
[377406644,1754383842001,-292.9155566,0.00035999,30]
[377406646,1754383842011,-578.9513623,0.00035999,30]
[377406649,1754383842023,-153.0,0.00035999,30]
[377406651,1754383842035,-292.9155566,0.00035999,30]
[377406654,1754383842049,-153.0,0.00035999,30]
[377406656,1754383842061,-578.9513623,0.00035999,30]
[377406658,1754383842071,-292.9155566,0.00035999,30]
[377406660,1754383842082,-160.3162146,0.00035999,30]
[377406662,1754383842093,-578.9513623,0.00035999,30]
[377406663,1754383842107,-292.9155566,0.00035999,30]
[377406664,1754383842118,-153.0,0.00035999,30]
[377406665,1754383842129,-153.0,0.00035999,30]
[377406666,1754383842140,-578.9513623,0.00035999,30]
[377406667,1754383842151,-160.3162146,0.00035999,30]
[377406668,1754383842164,-160.3162146,0.00035999,30]
[377406669,1754383842175,-292.9155566,0.00035999,30]
[377406670,1754383842186,-578.9513623,0.00035999,30]
[377406671,1754383842197,-160.3162146,0.00035999,30]
[377406672,1754383842210,-292.9155566,0.00035999,30]
[377406673,1754383842221,-153.0,0.00035999,30]
[377406674,1754383842233,-153.0,0.00035999,30]
[377406675,1754383842247,-578.9513623,0.00035999,30]
[377406676,1754383842257,-160.3162146,0.00035999,30]
[377406677,1754383842268,-292.9155566,0.00035999,30]
[377406678,1754383842280,-578.9513623,0.00035999,30]
[377406679,1754383842291,-160.3162146,0.00035999,30]
[377406680,1754383842302,-292.9155566,0.00035999,30]
[377406681,1754383842314,-153.0,0.00035999,30]
[377406682,1754383842326,-311.311208,0.00035999,30]
[377406683,1754383842336,-578.9513623,0.00035999,30]
[377406684,1754383842347,-201.28339804,0.00036,2]
[377406685,1754383842358,-1615.01,0.00036,7]
[377406686,1754383842370,-539.23,0.00036,2]
[377406687,1754383842380,-151.0,0.00036,19]
[377406688,1754383842393,-154.745903,0.0003609,20]
[377406689,1754383842403,-200.0,0.00036149,120]
[377406690,1754383842414,-3971.38,0.00036164,120]
[377406691,1754383842424,-1023.51894843,0.00036197,2]
[377406692,1754383842435,-202.58381615,0.0003621,2]
[377406693,1754383842446,-780.0,0.00036216,2]
[377406694,1754383842457,-263.50408523,0.0003624,2]
[377406695,1754383842468,-502.4193091,0.00036268,5]
[377406696,1754383842479,-823.0,0.00036269,2]
[377406697,1754383842492,-200.0,0.00036287,120]
[377406699,1754383842503,-200.0,0.00036436,120]
[377406701,1754383842514,-13223.2154783,0.0003649,3]
[377406703,1754383842525,-61376.46548892,0.000365,2]
[377406705,1754383842581,-1611.57306503,0.000365,2]
[377406707,1754383842613,-944.51917421,0.000365,2]
[377406708,1754383842627,-4322.05247085,0.000365,2]
[377406709,1754383842640,-737.91395628,0.000365,2]
[377406710,1754383842653,-767.091838,0.000365,2]
[377406711,1754383842667,-76829.87799977,0.000365,2]
[377406727,1754383846825,-430.7234783,0.00034871,30]
[377406728,1754383846834,-500.0,0.00035,10]
[377406729,1754383846844,-578.9513623,0.00035999,30]
[377406730,1754383846853,-160.3162146,0.00035999,30]
[377406731,1754383846863,-292.9155566,0.00035999,30]
[377406732,1754383846872,-485.31,0.000362,2]
[377406734,1754383846882,-3112.37600694,0.000365,2]
[377406736,1754383846891,-153.403232,0.000365,14]
[377406738,1754383846901,-151.0,0.000365,14]
[377406739,1754383846910,-151.0,0.000365,14]
[377406740,1754383846920,-151.0,0.000365,14]
[377406742,1754383846930,-356.654883,0.000365,14]
[377406743,1754383846940,-356.654883,0.000365,14]
[377406744,1754383846949,-151.0,0.000365,14]
[377406745,1754383846959,-151.0,0.000365,14]
[377406746,1754383846968,-151.0,0.000365,14]
[377406747,1754383846978,-431.8335896,0.00036794,30]
[377406748,1754383846987,-151.0,0.000368,20]
[377406749,1754383846997,-160.3162146,0.00036821,30]
[377406750,1754383847006,-160.3162146,0.00036821,30]
[377406751,1754383847015,-160.3162146,0.00036821,30]
[377406752,1754383847024,-160.3162146,0.00036821,30]
[377406753,1754383847034,-160.3162146,0.00036821,30]
[377406754,1754383847044,-153.0,0.00036821,30]
[377406755,1754383847053,-578.9513623,0.00036821,30]
[377406756,1754383847063,-578.9513623,0.00036821,30]
[377406757,1754383847073,-578.9513623,0.00036821,30]
[377406758,1754383847082,-578.9513623,0.00036821,30]
[377406759,1754383847092,-153.0,0.00036821,30]
[377406760,1754383847101,-153.0,0.00036821,30]
[377406761,1754383847111,-153.0,0.00036821,30]
[377406762,1754383847120,-153.0,0.00036821,30]
[377406763,1754383847129,-153.0,0.00036821,30]
[377406764,1754383847139,-318.3981218,0.00036821,30]
[377406765,1754383847148,-292.9155566,0.00036821,30]
[377406766,1754383847158,-160.3162146,0.00036821,30]
[377406767,1754383847171,-292.9155566,0.00036821,30]
[377406768,1754383847181,-160.3162146,0.00036821,30]
[377406769,1754383847190,-160.3162146,0.00036821,30]
[377406770,1754383847199,-578.9513623,0.00036821,30]
[377406771,1754383847210,-578.9513623,0.00036821,30]
[377406772,1754383847220,-160.3162146,0.00036821,30]
[377406773,1754383847229,-160.3162146,0.00036821,30]
[377406774,1754383847240,-578.9513623,0.00036821,30]
[377406775,1754383847250,-578.9513623,0.00036821,30]
[377406776,1754383847259,-160.3162146,0.00036821,30]
[377406777,1754383847269,-160.3162146,0.00036821,30]
[377406778,1754383847279,-160.3162146,0.00036821,30]
[377406779,1754383847289,-578.9513623,0.00036821,30]
[377406780,1754383847298,-578.9513623,0.00036821,30]
[377406781,1754383847308,-578.9513623,0.00036821,30]
[377406782,1754383847317,-160.3162146,0.00036821,30]
[377406783,1754383847327,-578.9513623,0.00036821,30]
[377406784,1754383847337,-160.3162146,0.00036821,30]
[377406785,1754383847346,-160.3162146,0.00036821,30]
[377406786,1754383847355,-578.9513623,0.00036821,30]
[377406787,1754383847365,-160.3162146,0.00036821,30]
[377406788,1754383847374,-160.3162146,0.00036821,30]
[377406789,1754383847384,-160.3162146,0.00036821,30]
[377406790,1754383847393,-160.3162146,0.00036821,30]
[377406791,1754383847403,-160.3162146,0.00036821,30]
[377406792,1754383847412,-160.3162146,0.00036821,30]
[377406793,1754383847421,-151.0,0.00036821,14]
[377406794,1754383847431,-151.0,0.00036821,14]
[377406795,1754383847440,-151.0,0.00036821,14]
[377406796,1754383847449,-200.0,0.00036889,120]
[377406797,1754383847459,-3971.38,0.00036986,120]
[377406798,1754383847468,-152.0,0.00037,120]
[377406799,1754383847478,-200.0,0.00037107,120]
[377406800,1754383847487,-3305.80386957,0.00037183,3]
[377406801,1754383847497,-24743.7238047,0.00037193,2]
[377406802,1754383847507,-151.0,0.00037193,14]
[377406803,1754383847516,-152.039706,0.00037193,14]
[377406804,1754383847525,-151.0,0.00037193,14]
[377406805,1754383847536,-151.0,0.00037193,14]
[377406806,1754383847546,-194.500792,0.00037193,14]
[377406807,1754383847557,-194.500792,0.00037193,14]
[377406808,1754383847566,-179.230641,0.00037193,14]
[377406809,1754383847575,-179.230641,0.00037193,14]
[377406810,1754383847585,-982.315,0.00037217,2]
[377406811,1754383847594,-2148.0,0.00037217,2]
[377406812,1754383847604,-636.0,0.00037217,2]
[377406813,1754383847614,-151.0,0.00037217,14]
[377406814,1754383847623,-151.0,0.00037217,14]
[377406815,1754383847633,-151.0,0.00037217,14]
[377406816,1754383847642,-151.0,0.00037217,14]
[377406817,1754383847652,-724.87315716,0.000373,2]
[377406818,1754383847662,-200.0,0.00037363,120]
[377406819,1754383847672,-151.0,0.0003739,14]
[377406820,1754383847681,-151.0,0.0003739,14]
[377406821,1754383847691,-151.0,0.0003739,14]
[377406822,1754383847702,-151.0,0.0003739,14]
[377406823,1754383847711,-3305.80386957,0.0003739,3]
[377406824,1754383847721,-207.42381653,0.00037395,29]
[377406825,1754383847730,-335.39648,0.000374,120]
[377406826,1754383847740,-66623.01,0.000374,14]
[377406827,1754383847749,-151.0,0.000374,14]
[377406828,1754383847758,-151.0,0.000374,14]
[377406829,1754383847768,-151.0,0.000374,14]
[377406830,1754383847778,-548.93,0.00037408,2]
[377406831,1754383847788,-8576.28757506,0.000375,2]
[377406832,1754383847879,-363.45948642,0.000375,2]
[377406833,1754383847895,-1849.65755344,0.000375,2]
[377406834,1754383847910,-302.67550701,0.000375,2]
[377406835,1754383847921,-1829.73840852,0.000375,2]
[377406836,1754383867221,207.42381653,0.000249,2]
[377406837,1754383867305,207.42381653,0.000249,2]
[377406838,1754383867374,207.42381653,0.000249,2]
[377406839,1754383867723,181.22591477,0.000253,2]
[377406840,1754383873337,156.721935,0.00026362,20]
[377406841,1754384012415,207.42381653,0.000249,2]
[377406842,1754384012543,207.42381653,0.000249,2]
[377406844,1754384161919,207.42381653,0.000249,2]
[377406847,1754384306512,207.42381653,0.000249,2]
[377406848,1754384368599,-1499.47813539,0.00030681,120]
[377406849,1754384452209,207.42381653,0.000249,2]
[377406850,1754384454079,161.315177,0.00013699,2]
[377406851,1754384454631,161.315177,0.00023973,2]
[377406853,1754384504004,5351.088519,0.00028838,120]
[377406857,1754384680006,1000.0,0.0003068,120]
[377406864,1754384876176,152.0,0.00027101,2]
[377406908,1754385032007,-154.745903,0.0002831,20]
[377406910,1754385032018,-154.745903,0.00028779,20]
[377406912,1754385032028,-201.467012,0.00028836,2]
[377406914,1754385032038,-309.062188,0.00028838,2]
[377406917,1754385032048,-401.2672892,0.00028917,30]
[377406918,1754385032058,-160.0,0.00029565,2]
[377406920,1754385032068,-300.0,0.00029864,2]
[377406922,1754385032077,-300.0,0.00029864,2]
[377406924,1754385032087,-1200.0,0.00029864,2]
[377406926,1754385032096,-216.4206905,0.00029865,2]
[377406928,1754385032105,-160.0,0.00029865,2]
[377406930,1754385032115,-160.0,0.00029865,2]
[377406932,1754385032124,-842.25606042,0.00029865,2]
[377406934,1754385032134,-160.0,0.00029865,2]
[377406936,1754385032143,-160.0,0.00029865,2]
[377406938,1754385032153,-231.72586818,0.00029865,2]
[377406940,1754385032163,-12655.02535889,0.00029869,2]
[377406942,1754385032173,-200.0,0.00030679,2]
[377406944,1754385032182,-253.35,0.00031552,2]
[377406946,1754385032192,-500.0,0.00031591,2]
[377406950,1754385032201,-164.33151602,0.00031591,2]
[377406952,1754385032211,-500.0,0.00031591,2]
[377406954,1754385032221,-500.0,0.00031591,2]
[377406956,1754385032230,-500.0,0.00031591,2]
[377406958,1754385032239,-559.76303933,0.00031591,2]
[377406961,1754385032252,-539.66625763,0.00031591,2]
[377406963,1754385032261,-500.0,0.00031591,2]
[377406965,1754385032271,-500.0,0.00031591,2]
[377406967,1754385032280,-500.0,0.00031591,2]
[377406969,1754385032290,-475.75737799,0.00031591,2]
[377406971,1754385032299,-360.74773566,0.00031591,2]
[377406972,1754385032309,-500.0,0.00031591,2]
[377406974,1754385032319,-500.0,0.00031591,2]
[377406976,1754385032329,-500.0,0.00031591,2]
[377406978,1754385032339,-500.0,0.00031591,2]
[377406980,1754385032348,-440.46147221,0.00031591,2]
[377406982,1754385032357,-24900.0,0.00031592,2]
[377406984,1754385032367,-767.63921134,0.0003179,2]
[377406987,1754385032376,-420.0,0.00032192,2]
[377406989,1754385032386,-200.0,0.00032533,15]
[377406991,1754385032396,-200.0,0.00032533,15]
[377406993,1754385032405,-200.0,0.00032533,15]
[377406995,1754385032415,-160.0,0.00033167,2]
[377406997,1754385032424,-200.0,0.00033181,120]
[377406999,1754385032434,-253.40073822,0.00033304,2]
[377407001,1754385032444,-151.0,0.00033588,2]
[377407002,1754385032454,-171.0,0.00033588,2]
[377407004,1754385032463,-5351.088519,0.00033645,120]
[377407006,1754385032479,-260.0,0.00033715,2]
[377407008,1754385032493,-161.315177,0.00034247,2]
[377407010,1754385032505,-500.0,0.00034247,2]
[377407012,1754385032514,-360.0,0.00034263,2]
[377407014,1754385032524,-587.0,0.000347,2]
[377407016,1754385032533,-1278.44,0.00035,2]
[377407018,1754385032542,-1000.0,0.00035,2]
[377407020,1754385032551,-1000.0,0.00035,2]
[377407022,1754385032562,-1000.0,0.00035,2]
[377407024,1754385032571,-1000.0,0.00035,2]
[377407026,1754385032581,-1000.0,0.00035,2]
[377407028,1754385032591,-1000.0,0.00035,2]
[377407030,1754385032600,-1000.0,0.00035,2]
[377407032,1754385032609,-767.63921132,0.00035011,2]
[377407034,1754385032619,-500.69756271,0.0003558,2]
[377407036,1754385032632,-200.0,0.00035637,15]
[377407038,1754385032642,-200.0,0.00035637,15]
[377407040,1754385032652,-200.0,0.00035637,15]
[377407042,1754385032663,-240.0,0.00035637,15]
[377407044,1754385032674,-430.7234783,0.00035835,30]
[377407046,1754385032692,-430.7234783,0.00035835,30]
[377407048,1754385032702,-430.1882774,0.00035835,30]
[377407051,1754385032711,-543.07378034,0.00036,120]
[377407054,1754385032723,-551.75279048,0.0003637,2]
[377407056,1754385032732,-500.0,0.00036373,5]
[377407058,1754385032741,-3274.43,0.00036387,120]
[377407060,1754385032754,-344.4884614,0.00036387,15]
[377407062,1754385032763,-53139.4946795,0.00036388,3]
[377407064,1754385032772,-1322.32154782,0.00036388,3]
[377407066,1754385032781,-12662.46051652,0.00036398,2]
[377407069,1754385032806,-55213.85987249,0.00036398,2]
[377407072,1754385032818,-14016.08200431,0.00036398,2]
[377407073,1754385032827,-490.7,0.000364,2]
[377407075,1754385032836,-1230.08039091,0.000364,2]
[377407336,1754385038002,-394.0,0.0003647,120]
[377407337,1754385038011,-500.0,0.00036473,5]
[377407338,1754385038022,-151.0,0.00036478,2]
[377407339,1754385038031,-151.0,0.00036478,2]
[377407340,1754385038041,-151.0,0.00036478,2]
[377407341,1754385038051,-151.0,0.00036478,2]
[377407342,1754385038060,-151.0,0.00036478,2]
[377407343,1754385038069,-151.0,0.00036478,2]
[377407344,1754385038078,-151.0,0.00036478,2]
[377407345,1754385038088,-151.0,0.00036478,2]
[377407346,1754385038097,-151.0,0.00036478,2]
[377407347,1754385038106,-151.0,0.00036478,2]
[377407348,1754385038115,-151.0,0.00036478,2]
[377407349,1754385038124,-151.0,0.00036478,2]
[377407350,1754385038133,-151.0,0.00036478,2]
[377407351,1754385038143,-151.0,0.00036478,2]
[377407352,1754385038152,-151.0,0.00036478,2]
[377407353,1754385038161,-151.0,0.00036478,2]
[377407354,1754385038171,-151.0,0.00036478,2]
[377407355,1754385038180,-151.0,0.00036478,2]
[377407356,1754385038190,-151.0,0.00036478,2]
[377407357,1754385038199,-151.0,0.00036478,2]
[377407358,1754385038208,-394.0,0.0003648,120]
[377407359,1754385038218,-394.0,0.0003649,120]
[377407360,1754385038228,-53139.4946795,0.0003649,3]
[377407361,1754385038238,-1322.32154782,0.0003649,3]
[377407362,1754385038247,-151.0,0.000365,14]
[377407363,1754385038256,-37851.43,0.000365,2]
[377407364,1754385038266,-61376.47,0.000365,2]
[377407365,1754385038276,-234.537279,0.000365,14]
[377407366,1754385038285,-234.537279,0.000365,14]
[377407367,1754385038295,-151.0,0.000365,14]
[377407368,1754385038305,-200.0,0.00036521,120]
[377407369,1754385038315,-26569.7473397,0.00036582,3]
[377407370,1754385038325,-661.16077391,0.00036582,3]
[377407371,1754385038334,-971.0,0.00036592,2]
[377407372,1754385038344,-2148.0,0.00036592,2]
[377407373,1754385038353,-636.0,0.00036592,2]
[377407374,1754385038363,-408.0,0.00036592,2]
[377407375,1754385038373,-410.804,0.00036592,2]
[377407376,1754385038382,-313.48108212,0.00036602,2]
[377407393,1754385040000,-238.27170835,0.00036602,2]
[377407394,1754385040118,-430.7234783,0.00036818,30]
[377407395,1754385040128,-430.7234783,0.00036818,30]
[377407396,1754385040137,-430.7234783,0.00036818,30]
[377407397,1754385040146,-430.7234783,0.00036818,30]
[377407398,1754385040156,-430.7234783,0.00036818,30]
[377407399,1754385040165,-430.7234783,0.00036818,30]
[377407400,1754385040175,-430.7234783,0.00036818,30]
[377407401,1754385040184,-430.7234783,0.00036818,30]
[377407402,1754385040193,-430.7234783,0.00036818,30]
[377407403,1754385040203,-430.7234783,0.00036818,30]
[377407404,1754385040213,-430.7234783,0.00036818,30]
[377407405,1754385040222,-430.7234783,0.00036818,30]
[377407406,1754385040232,-632.0982471,0.00036818,30]
[377407407,1754385040241,-45.94830495,0.00036835,2]
[377407426,1754385047902,-460.0,0.00036835,2]
[377407427,1754385047932,511.0,0.00030137,120]
[377407428,1754385059101,511.0,0.00030137,120]
[377407429,1754385070626,511.0,0.00030137,120]
[377407430,1754385077852,-154.745903,0.0002831,20]
[377407431,1754385077884,-154.745903,0.00028779,20]
[377407432,1754385077906,-150.508194,0.00035013,2]
[377407433,1754385081446,511.0,0.00030137,120]
[377407434,1754385094116,511.0,0.00030137,120]
[377407438,1754385107624,684.0,0.00030137,120]
[377407439,1754385107882,-249.491806,0.00035013,2]
[377407440,1754385107906,-212.90167247,0.00035014,2]
[377407449,1754385139979,-281.13719943,0.00035013,2]
[377407450,1754385167978,-573.75347117,0.00035012,2]
[377407451,1754385198673,-400.0,0.00035011,2]
[377407452,1754385198707,-60.0,0.00035012,2]
[377407453,1754385228441,-460.0,0.0003501,2]
[377407458,1754385249008,258.91963141,0.000249,2]
[377407462,1754385257950,-258.91963139,0.0003395,21]
[377407463,1754385257971,-213.95841193,0.00035009,2]
[377407464,1754385287870,-295.047,0.00030679,120]
[377407465,1754385287894,-433.853,0.00035008,2]
[377407466,1754385318108,-201.467012,0.00033464,2]
[377407467,1754385318133,-260.05579535,0.00035006,2]
[377407468,1754385347907,-460.0,0.000305,3]
[377407474,1754385378092,-460.0,0.000305,3]
[377407476,1754385378989,161.315177,0.00013699,2]
[377407478,1754385408025,-161.315177,0.00027397,2]
[377407479,1754385408048,-80.0,0.000305,3]
[377407480,1754385408071,-236.35928118,0.00032152,120]
[377407484,1754385437938,-1919.64523115,0.00032152,120]
[377407485,1754385469151,-460.0,0.00032152,120]
[377407490,1754385498426,-59.53974667,0.00032152,120]
[377407491,1754385498449,-381.0,0.00035001,2]
[377407492,1754385498471,-20.69320813,0.00035002,2]
[377407493,1754385527938,-479.86013935,0.00035,120]
[377407494,1754385558060,-217.72414914,0.00035,120]
[377407498,1754385587991,-168.9,0.00031852,2]
[377407499,1754385588014,-291.1,0.00035,120]
[377407517,1754385617870,-302.0,0.00034998,3]
[377407518,1754385617893,-158.0,0.00034998,3]
[377407520,1754385648852,-142.0,0.00034998,3]
[377407521,1754385648874,-408.3350081,0.00034998,3]
[377407525,1754385673720,156.721936,0.00026362,20]
[377407526,1754385678530,-154.745903,0.00028779,20]
[377407527,1754385678554,-670.924097,0.00034997,2]
[377407528,1754385708576,-460.0,0.00034997,2]
[377407532,1754385739065,-469.96996308,0.00034995,2]
[377407533,1754385768624,-460.0,0.00034995,2]
[377407536,1754385797901,-460.0,0.00034993,2]
[377407541,1754385827948,-550.4,0.00034993,2]
[377407549,1754385856835,232.0,0.00030137,120]
[377407550,1754385857906,-460.0,0.00034991,2]
[377407554,1754385887905,-469.2621318,0.00034991,2]
[377407571,1754385917930,-309.0621898,0.00033661,2]
[377407572,1754385917954,-147.0478102,0.00034989,2]
[377407633,1754386053038,348.68251664,0.000249,2]
[377407663,1754386094871,1721.16117654,0.00019205,5]
[377407783,1754386232096,-150.0,0.00027946,15]
[377407785,1754386232106,-150.0,0.00027946,15]
[377407787,1754386232115,-500.0,0.00027973,5]
[377407789,1754386232124,-500.0,0.00028521,5]
[377407791,1754386232134,-300.0,0.00030672,2]
[377407793,1754386232143,-400.0,0.00030672,2]
[377407795,1754386232152,-300.0,0.00030672,2]
[377407797,1754386232161,-791.0,0.00030672,2]
[377407799,1754386232171,-500.0,0.00030673,5]
[377407801,1754386232180,-500.0,0.00030673,2]
[377407803,1754386232189,-500.0,0.00030673,5]
[377407805,1754386232198,-1231.44,0.00030676,3]
[377407807,1754386232207,-31.65091137,0.00030676,3]
[377407810,1754386232219,-584.06908863,0.00030676,3]
[377407812,1754386232228,-241.14192298,0.00030685,2]
[377407815,1754386232237,-437.82905247,0.00030685,2]
[377407819,1754386232247,-7211.39633911,0.00030685,2]
[377407822,1754386232257,-31.11617409,0.00030686,30]
[377407872,1754386238064,-201.4670168,0.00029684,2]
[377407873,1754386238074,-307.86,0.00030676,3]
[377407874,1754386238085,-955.61382591,0.00030686,30]
[377407875,1754386238095,-971565.06634252,0.00030686,20]
[377407876,1754386238104,-582.50749258,0.00030688,2]
[377407877,1754386238114,-200.0,0.00030788,15]
[377407878,1754386238124,-200.0,0.00030788,15]
[377407879,1754386238133,-200.0,0.00030788,15]
[377407880,1754386238143,-500.0,0.00030973,5]
[377407881,1754386238152,-150.0,0.00030973,5]
[377407882,1754386238161,-500.0,0.00030973,5]
[377407883,1754386238170,-500.0,0.00030973,5]
[377407884,1754386238179,-153.69797862,0.00030973,5]
[377407885,1754386238188,-500.0,0.00030973,5]
[377407886,1754386238198,-500.0,0.00030973,5]
[377407887,1754386238207,-500.0,0.00030973,5]
[377407888,1754386238217,-500.0,0.00030973,5]
[377407889,1754386238226,-500.0,0.00030973,5]
[377407890,1754386238236,-500.0,0.00030973,5]
[377407891,1754386238245,-500.0,0.00030973,5]
[377407892,1754386238254,-474.71773811,0.00030973,2]
[377407893,1754386238264,-26526.35631146,0.0003098,2]
[377407943,1754386242191,-0.04441979,0.0003098,2]
[377408181,1754386584418,150.0,0.00025399,2]
[377408183,1754386672957,200.9639303,0.000249,2]
[377408184,1754386673015,200.96393023,0.000249,2]
[377408185,1754386673103,200.96393023,0.000249,2]
[377408186,1754386673190,200.96393023,0.000249,2]
[377408187,1754386673278,200.96393023,0.000249,2]
[377408188,1754386673357,200.96393023,0.000249,2]
[377408189,1754386673430,200.96393023,0.000249,2]
[377408190,1754386673517,200.96393023,0.00026535,5]
[377408193,1754386698770,161.315177,0.00013699,2]
[377408196,1754386839640,202.66234624,0.000249,2]
[377408197,1754386839818,202.66234614,0.000249,2]
[377408198,1754386839853,202.66234614,0.000249,2]
[377408199,1754386839935,202.66234614,0.000249,2]
[377408200,1754386840039,202.66234614,0.00025107,2]
[377408204,1754386998430,205.46408921,0.000249,2]
[377408205,1754386998543,205.46408916,0.000249,2]
[377408206,1754386998630,205.46408916,0.000249,2]
[377408207,1754386998730,205.46408916,0.0002637,5]
[377408210,1754387143168,327.04233878,0.0002427,2]
[377408211,1754387156769,210.49573954,0.000249,2]
[377408212,1754387156851,210.49573949,0.000249,2]
[377408217,1754387250272,167.0,0.00025288,16]
[377408218,1754387290870,500.0,0.00030678,120]
[377408221,1754387317563,202.90797637,0.000249,2]
[377408222,1754387317641,202.90797628,0.000249,2]
[377408223,1754387317743,202.90797628,0.000249,2]
[377408224,1754387317845,202.90797628,0.00025336,3]
[377408323,1754387432982,-168.0412128,0.00027705,2]
[377408325,1754387432991,-150.86,0.00027939,15]
[377408327,1754387433001,-150.86,0.00028039,15]
[377408329,1754387433010,-150.86,0.00028139,15]